bitfinex/quotes_ETHUSD_20240709
["timestamp","ask_amount","ask_price","bid_price","bid_amount"]
[1720506005142,0.40849195,3086.1,3085.3,3.24112]
[1720506005538,4.49,3086.2,3085.4,3.24097]
[1720506005740,4.49,3086.2,3085.3,3.24112]
[1720506006941,4.49,3086.2,3085.0,3.24148]
[1720506006942,6.443,3086.2,3085.0,3.24148]
[1720506007141,3.97964843,3086.1,3085.1,3.24137]
[1720506007342,0.90379195,3086.1,3085.0,3.24147]
[1720506007649,4.49,3086.2,3085.5,3.2409]
[1720506007817,4.49,3086.2,3085.2,3.24127]
[1720506008415,1.12286145,3086.1,3085.0,3.24139]
[1720506008763,0.75658615,3086.0,3085.0,3.24139]
[1720506008916,2.2793,3085.8,3084.8,3.24169]
[1720506009111,0.75658615,3086.0,3085.2,3.2412]
[1720506009461,0.75658615,3086.0,3085.4,3.24106]
[1720506009625,0.33902162,3085.9,3085.4,3.24106]
[1720506009814,0.33902162,3085.9,3085.4,3.30587494]
[1720506010149,0.33902162,3085.9,3085.5,0.06481156]
[1720506010329,2.2793,3086.7,3085.5,0.06481156]
[1720506010515,0.3388109,3086.4,3085.8,3.24065]
[1720506011615,0.3388109,3086.4,3086.0,3.24036]
[1720506012156,0.67269199,3086.4,3085.6,3.24083]
[1720506012666,0.67269199,3086.4,3085.2,3.24124]
[1720506013017,0.67269199,3086.4,3085.0,6.24146]
[1720506013018,5.43585036,3086.3,3085.0,3.24146]
[1720506013211,4.73370459,3086.2,3085.0,3.24146]
[1720506013411,3.61085423,3086.2,3085.1,3.24138]
[1720506013711,3.61085423,3086.2,3085.2,3.24125]
[1720506014027,0.79238542,3086.1,3085.2,3.24125]
[1720506014229,0.79238542,3086.1,3084.9,3.24156]
[1720506014487,0.79238542,3086.1,3084.9,3.24158]
[1720506015041,0.79238542,3086.1,3085.1,3.24132]
[1720506015343,0.79238542,3086.1,3085.3,3.24117]
[1720506015857,0.37923854,3086.0,3085.3,3.24117]
[1720506016254,3.0,3086.2,3085.4,3.30586575]
[1720506016475,0.3388109,3086.4,3085.7,3.24066]
[1720506017543,0.3388109,3086.4,3085.6,3.24078]
[1720506018053,0.67269199,3086.4,3085.7,3.24073]
[1720506019076,0.67269199,3086.4,3085.8,3.24055]
[1720506019077,0.3388109,3086.4,3085.8,3.24055]
[1720506019749,0.3388109,3086.4,3085.8,3.24061]
[1720506020591,0.3388109,3086.4,3085.4,3.24106]
[1720506020833,0.67269199,3086.4,3085.2,3.24125]
[1720506021410,1.953,3086.1,3084.9,3.24156]
[1720506021610,0.44103,3086.0,3084.9,3.24156]
[1720506022045,0.44103,3086.0,3085.0,3.24148]
[1720506022217,0.44103,3086.0,3085.2,3.24123]
[1720506022576,0.44103,3086.0,3085.3,3.3059676]
[1720506022777,0.3388109,3086.4,3085.4,2.3228]
[1720506023004,0.3388109,3086.4,3086.3,3.24012]
[1720506023318,2.59491947,3087.3,3086.3,3.24012]
[1720506023521,2.59491947,3087.3,3086.5,3.23981]
[1720506023723,2.93394826,3087.3,3086.6,0.06478605]
[1720506023933,2.93394826,3087.3,3087.0,3.23938]
[1720506024431,2.93394826,3087.3,3086.8,3.23958]
[1720506025010,0.33902879,3087.3,3086.8,3.23958]
[1720506025187,0.33902879,3087.3,3087.0,3.23936]
[1720506025387,0.33902879,3087.3,3087.2,6.47836]
[1720506025819,2.2527,3088.5,3087.6,3.23869]
[1720506026087,2.59167893,3088.5,3087.7,3.23863]
[1720506026528,2.59167893,3088.5,3087.1,1.687]
[1720506026717,4.38116376,3088.4,3087.3,3.239]
[1720506026921,1.12199587,3088.3,3087.0,3.23929]
[1720506027100,1.81928014,3088.3,3087.2,3.23916]
[1720506027303,1.12199587,3088.2,3087.2,3.23916]
[1720506028214,0.69728427,3088.3,3087.2,3.23916]
[1720506028423,1.12216493,3088.1,3086.8,3.23958]
[1720506028631,3.50406493,3088.0,3086.8,3.23958]
[1720506028791,3.50406493,3088.0,3086.6,3.23979]
[1720506028792,3.07526226,3087.9,3086.6,3.23979]
[1720506028993,4.12226226,3087.8,3086.7,3.23969]
[1720506029194,1.12229804,3087.7,3086.7,3.23969]
[1720506029390,3.0,3087.8,3086.7,3.23969]
[1720506029693,1.12228784,3087.7,3086.8,3.23959]
[1720506029925,1.73762849,3087.7,3086.9,0.06478236]
[1720506030137,0.61534065,3087.7,3087.0,3.23937]
[1720506030310,4.84091947,3089.0,3087.1,0.06477983]
[1720506030493,3.504023,3088.4,3087.5,3.23878]
[1720506030688,1.122123,3088.3,3087.3,3.23906]
[1720506030947,1.122123,3088.2,3087.3,3.23906]
[1720506031109,2.3819,3088.4,3087.3,3.23906]
[1720506031110,0.27208789,3088.3,3087.3,3.23906]
[1720506031328,0.27208789,3088.3,3087.1,3.23919]
[1720506031641,3.07510547,3088.2,3087.0,3.23937]
[1720506031795,1.12210547,3088.1,3086.7,3.23968]
[1720506031992,1.12210547,3088.1,3086.5,3.2399]
[1720506031993,4.9482,3088.0,3086.5,3.2399]
[1720506032234,1.953,3087.8,3086.5,3.2399]
[1720506032532,4.12210547,3087.9,3086.6,3.30458632]
[1720506032533,1.1859812,3087.7,3086.6,3.30458632]
[1720506032703,0.06387573,3087.7,3087.3,3.23907]
[1720506032909,2.4452,3088.0,3087.3,3.23907]
[1720506033095,0.06381923,3087.9,3087.3,3.23907]
[1720506033654,0.06381923,3087.9,3087.4,0.0647737]
[1720506033935,2.62317893,3088.5,3087.5,3.23884]
[1720506034138,1.18600634,3088.4,3087.5,3.23884]
[1720506034342,1.12205053,3088.3,3087.5,3.23884]
[1720506034551,0.06399537,3088.2,3087.5,3.23884]
[1720506034716,2.62317893,3088.5,3087.3,3.23907]
[1720506034911,4.59735946,3088.4,3087.3,3.23907]
[1720506035229,2.2973,3088.2,3086.9,3.23947]
[1720506035397,2.2973,3088.2,3086.6,4.6693]
[1720506035398,1.12202886,3088.1,3087.1,3.23926]
[1720506035597,0.60130298,3088.1,3087.1,3.23926]
[1720506035796,0.60130298,3088.1,3087.3,3.23905]
[1720506036045,0.06407009,3088.1,3086.9,3.23943]
[1720506036329,1.12212748,3088.0,3086.9,3.23943]
[1720506036639,4.2503,3088.2,3086.9,3.23943]
[1720506036640,0.06401417,3087.9,3086.9,3.23943]
[1720506037002,0.45755,3088.1,3086.9,3.23943]
[1720506037198,0.06399489,3087.8,3086.9,3.23943]
[1720506037535,0.06398035,3087.7,3086.9,3.23943]
[1720506037760,0.470785,3088.0,3086.9,3.23943]
[1720506037917,0.06395798,3087.6,3086.9,3.23943]
[1720506038237,0.470785,3088.0,3086.9,3.23943]
[1720506038449,0.06393634,3087.5,3087.0,3.23935]
[1720506038745,0.06392725,3087.4,3087.0,3.23935]
[1720506039048,0.470785,3088.0,3086.9,3.23943]
[1720506039344,1.12220123,3087.9,3086.9,3.23943]
[1720506039640,2.4523,3087.7,3086.3,3.24005]
[1720506039848,1.12220123,3087.6,3086.3,3.24005]
[1720506040002,3.13909532,3087.6,3086.3,3.24005]
[1720506040209,4.12220123,3087.5,3086.3,3.24005]
[1720506040518,0.06386109,3087.4,3086.5,3.23982]
[1720506040731,0.06386109,3087.4,3086.6,3.23979]
[1720506040916,2.4523,3087.7,3087.0,3.23938]
[1720506041303,0.06373568,3087.6,3087.0,3.23938]
[1720506041665,0.33901215,3088.0,3087.1,0.06477853]
[1720506041797,2.3141,3088.1,3087.3,3.23907]
[1720506042003,0.06377694,3087.9,3087.3,3.30384202]
[1720506042243,0.06379148,3088.0,3087.3,3.30384202]
[1720506042413,0.0637624,3087.8,3087.1,6.54324202]
[1720506042623,0.06378167,3087.9,3087.2,3.23917]
[1720506042805,2.3141,3088.1,3087.2,3.23917]
[1720506043007,0.0637695,3087.8,3086.7,3.2397]
[1720506043303,0.06392293,3087.7,3086.9,3.23948]
[1720506043612,0.06392293,3087.7,3086.5,3.0]
[1720506043613,2.54551,3088.1,3087.1,3.2392]
[1720506043936,0.06396656,3088.0,3087.0,3.23929]
[1720506044100,0.26094766,3087.9,3087.0,3.23929]
[1720506044307,0.06399188,3087.8,3086.7,3.23969]
[1720506044623,1.12222091,3087.7,3086.8,6.23959]
[1720506044824,0.06399188,3087.8,3086.8,9.4791]
[1720506045002,0.06399902,3087.6,3087.1,3.23921]
[1720506045209,0.06401357,3087.7,3087.1,3.23921]
[1720506045411,0.06398448,3087.5,3087.1,3.23921]
[1720506045615,0.06399902,3087.6,3087.1,3.23921]
[1720506045904,2.3141,3088.1,3087.1,3.23921]
[1720506046105,1.18618352,3088.0,3087.2,0.06477551]
[1720506046303,1.12216017,3087.9,3087.2,0.06477551]
[1720506046662,1.12216017,3087.9,3087.1,3.23921]
[1720506046663,0.06399426,3087.8,3087.0,3.30410551]
[1720506046803,0.06399426,3087.8,3086.9,3.2394]
[1720506047004,2.3141,3088.1,3086.9,3.2394]
[1720506047225,0.06399155,3087.7,3086.9,3.2394]
[1720506047429,2.3141,3088.1,3086.9,3.2394]
[1720506047671,0.06398246,3087.6,3086.9,3.2394]
[1720506047956,2.5360979,3088.0,3086.8,3.0]
[1720506047957,0.06396791,3087.5,3086.8,6.23957]
[1720506048160,2.43801979,3087.9,3086.5,3.23989]
[1720506048474,0.0639368,3087.4,3086.6,3.2398]
[1720506048634,1.12231608,3087.3,3086.6,3.2398]
[1720506048833,0.06392226,3087.3,3086.6,3.2398]
[1720506049040,3.0,3087.8,3086.6,3.2398]
[1720506049253,0.06390771,3087.2,3086.6,3.2398]
[1720506049453,3.0,3087.8,3086.6,3.2398]
[1720506049655,0.06390098,3087.1,3086.6,3.2398]
[1720506049843,3.0,3087.8,3086.6,3.2398]
[1720506050056,2.53643885,3087.7,3086.6,3.2398]
[1720506050245,3.09008273,3087.6,3086.6,3.2398]
[1720506050433,1.67596195,3087.6,3086.6,3.2398]
[1720506050765,2.4406,3087.4,3086.0,5.53276]
[1720506050977,1.12231764,3087.3,3086.0,2.2924]
[1720506051267,1.12231764,3087.3,3085.5,5.50745]
[1720506051268,1.953,3087.1,3085.5,5.50745]
[1720506051485,0.3252,3086.9,3085.5,3.24095]
[1720506051684,3.58739952,3086.8,3085.5,3.24095]
[1720506051830,2.53665411,3086.7,3085.6,3.24086]
[1720506052026,2.53689387,3086.6,3085.5,3.24095]
[1720506052240,2.53689387,3086.6,3085.1,4.5125]
[1720506052241,1.953,3086.3,3085.1,3.24136]
[1720506052464,1.12231764,3086.2,3084.9,3.24156]
[1720506052677,1.18577514,3086.2,3084.9,3.24156]
[1720506052879,1.12231764,3086.1,3085.0,3.24148]
[1720506053271,0.06306786,3086.0,3084.8,3.24167]
[1720506053470,1.12231764,3085.9,3084.8,3.24167]
[1720506053779,1.18592824,3085.8,3084.9,6.24159]
[1720506053945,0.063034,3085.8,3085.2,3.24121]
[1720506054145,2.2951,3086.4,3085.2,3.24121]
[1720506054398,2.60056166,3086.3,3085.2,3.24121]
[1720506054574,2.53757736,3086.2,3085.2,3.24121]
[1720506054746,1.12282184,3086.1,3085.2,3.24121]
[1720506054941,0.06294063,3086.0,3085.2,3.24121]
[1720506055156,1.12282184,3085.9,3085.2,3.24121]
[1720506055382,0.06289966,3085.8,3085.2,3.24121]
[1720506056189,0.0628851,3085.7,3085.3,3.24117]
[1720506056358,0.0628851,3085.7,3085.4,0.06481402]
[1720506056561,5.2951,3086.4,3085.4,0.06481402]
[1720506056781,1.8475626,3086.3,3085.1,3.24133]
[1720506056952,1.12276503,3086.2,3085.1,3.24133]
[1720506057143,1.18570838,3086.1,3085.2,3.24127]
[1720506057356,0.06294335,3086.1,3085.2,3.24127]
[1720506057587,0.33884194,3086.1,3085.2,3.24127]
[1720506057893,0.06294063,3086.0,3085.2,3.24127]
[1720506058192,0.06294063,3086.0,3084.9,3.0]
[1720506058417,0.06294063,3086.0,3084.9,6.24152]
[1720506059274,0.06294063,3086.0,3084.7,3.24171]
[1720506059275,1.12287686,3085.9,3084.7,3.24171]
[1720506059515,0.06070041,3085.8,3084.8,3.24168]
[1720506059679,0.33884194,3086.1,3085.0,3.24148]
[1720506059878,1.12292054,3086.0,3085.0,3.24148]
[1720506060114,0.06068927,3086.0,3085.0,3.24148]
[1720506061412,0.06068927,3086.0,3085.2,3.2412]
[1720506061911,0.06068927,3086.0,3085.3,3.30593506]
[1720506062315,0.06068927,3086.0,3085.3,3.24112]
[1720506062810,0.06068927,3086.0,3085.1,3.30619452]
[1720506063211,0.06068927,3086.0,3085.2,3.24128]
[1720506063917,0.06068927,3086.0,3085.3,3.30596507]
[1720506064115,0.06068927,3086.0,3085.4,3.24105]
[1720506064683,0.06068927,3086.0,3085.3,3.24117]
[1720506065104,0.06068927,3086.0,3085.1,3.24136]
[1720506066904,0.06068927,3086.0,3084.6,2.4799]
[1720506067098,3.39748853,3085.9,3084.6,3.24184]
[1720506067330,4.52909476,3085.8,3084.6,3.24184]
[1720506067609,1.12288853,3085.7,3084.6,3.24184]
[1720506067820,1.953,3085.6,3084.4,3.2421]
[1720506067998,5.51535822,3085.5,3084.2,3.2423]
[1720506068340,4.18338603,3085.4,3084.2,3.2423]
[1720506068530,1.1231786,3085.3,3084.2,3.2423]
[1720506068733,0.06021104,3085.2,3084.1,3.24241]
[1720506068941,0.47856168,3085.2,3084.2,3.24231]
[1720506069115,0.06021104,3085.2,3084.3,3.30701586]
[1720506069325,3.0,3085.4,3084.3,3.2422]
[1720506069655,2.74688885,3085.5,3084.3,3.2422]
[1720506069656,0.06022561,3085.3,3084.9,3.24158]
[1720506069999,2.59491947,3085.8,3085.0,0.06482345]
[1720506070203,2.4796,3085.9,3085.3,3.24117]
[1720506070435,2.5050007,3086.6,3085.3,3.24117]
[1720506070436,2.3845,3086.4,3085.5,3.24095]
[1720506071529,2.3845,3086.4,3085.5,3.30576335]
[1720506071822,0.33904964,3086.5,3085.8,3.24063]
[1720506072248,0.33904964,3086.5,3085.6,3.24077]
[1720506072565,1.1227334,3086.4,3085.8,3.24064]
[1720506072711,2.3929,3086.9,3085.9,0.0648006]
[1720506072913,1.35333426,3087.5,3086.3,6.48024]
[1720506072914,0.3388055,3086.4,3086.3,6.48024]
[1720506073143,2.3929,3087.6,3086.7,3.23968]
[1720506073307,1.12233482,3087.5,3086.7,3.23968]
[1720506073517,2.3929,3087.6,3086.7,3.23968]
[1720506073728,1.12232868,3087.5,3086.8,3.23959]
[1720506073912,2.3929,3087.6,3086.8,3.23959]
[1720506074143,1.36160136,3087.5,3086.9,3.30423554]
[1720506074357,0.33874191,3087.8,3087.0,3.2393]
[1720506074517,2.3769,3088.0,3087.0,3.2393]
[1720506074518,1.12222122,3087.7,3087.0,3.2393]
[1720506074723,2.3769,3088.0,3087.0,3.2393]
[1720506074934,0.23769,3087.9,3087.0,3.2393]
[1720506075251,1.35987787,3087.9,3087.1,3.23928]
[1720506075415,0.23769,3087.9,3087.1,3.23928]
[1720506075616,1.38365193,3087.8,3087.1,3.23928]
[1720506075819,0.261459,3087.8,3087.1,3.23928]
[1720506077251,2.3769,3088.0,3087.2,0.06477959]
[1720506077450,0.40040457,3087.7,3087.2,0.06477959]
[1720506077651,0.33899102,3087.7,3087.2,0.06477959]
[1720506078033,0.33899102,3087.7,3087.2,3.30391959]
[1720506078422,0.33899102,3087.7,3087.2,3.23914]
[1720506078825,0.33899102,3087.7,3087.2,3.30391542]
[1720506079028,0.06147707,3087.6,3087.2,3.30391542]
[1720506079349,0.33899102,3087.7,3087.2,0.06477542]
[1720506079555,0.06158828,3087.6,3087.5,3.23884]
[1720506079725,0.06158828,3087.6,3087.3,3.23905]
[1720506080086,0.33899102,3087.7,3087.3,3.23905]
[1720506080223,0.33899102,3087.7,3087.4,3.23895]
[1720506080543,0.0616072,3087.6,3087.4,3.23895]
[1720506080750,0.33899102,3087.7,3087.4,3.23895]
[1720506080955,0.0616072,3087.6,3086.7,3.23969]
[1720506081268,0.33899102,3087.7,3086.7,3.23969]
[1720506081563,0.33899102,3087.7,3086.3,4.7426]
[1720506081564,0.06163557,3087.6,3086.8,3.23959]
[1720506081769,0.06163557,3087.6,3086.7,3.2397]
[1720506082063,0.33899102,3087.7,3086.8,3.23951]
[1720506082266,0.33899102,3087.7,3087.0,3.2393]
[1720506082452,0.33899102,3087.7,3087.1,3.23919]
[1720506082453,0.06163557,3087.6,3087.1,3.23919]
[1720506082834,0.33899102,3087.7,3087.1,3.30396627]
[1720506083036,0.33899102,3087.7,3087.1,3.23919]
[1720506083370,0.05954187,3087.6,3087.1,3.30396626]
[1720506083669,0.33899102,3087.7,3087.1,3.30396626]
[1720506083869,0.33899102,3087.7,3087.2,3.23916]
[1720506084078,0.05946146,3087.6,3087.2,3.23916]
[1720506084369,0.33899102,3087.7,3087.3,0.06477553]
[1720506084560,0.05946856,3087.6,3087.3,0.06477553]
[1720506084764,0.33899102,3087.7,3087.3,0.06477508]
[1720506084969,0.05946856,3087.6,3087.5,3.23885]
[1720506085163,3.0,3088.3,3087.5,3.23885]
[1720506085350,0.33873538,3088.0,3087.5,3.23885]
[1720506085539,0.05955714,3087.9,3087.5,3.23885]
[1720506087877,0.05955714,3087.9,3087.6,3.23874]
[1720506088240,0.33873538,3088.0,3087.6,3.23874]
[1720506088743,0.0597026,3087.9,3087.6,3.23874]
[1720506088964,0.33873538,3088.0,3087.6,3.23874]
[1720506089155,0.0597286,3087.9,3087.6,3.23874]
[1720506089365,0.33873538,3088.0,3087.6,3.23874]
[1720506089570,0.0597286,3087.9,3087.6,3.23874]
[1720506089750,0.33873538,3088.0,3087.6,3.23874]
[1720506089948,0.33873538,3088.0,3087.8,3.23845]
[1720506089949,0.0597286,3087.9,3087.8,3.23845]
[1720506090280,2.59491947,3088.5,3087.8,3.23845]
[1720506090281,2.59491947,3088.5,3087.8,3.30321041]
[1720506090480,0.33898562,3088.5,3087.8,5.66391041]
[1720506090640,0.05980511,3088.4,3088.1,3.23822]
[1720506090978,0.33898562,3088.5,3088.1,3.23822]
[1720506091287,0.33898562,3088.5,3087.3,2.3904]
[1720506091288,0.05984419,3088.4,3087.3,2.3904]
[1720506091466,0.05984419,3088.4,3087.2,6.23914]
[1720506091778,0.05986315,3088.3,3086.9,2.3904]
[1720506091945,0.05986315,3088.3,3087.5,3.23884]
[1720506092144,0.33898562,3088.5,3087.5,3.23884]
[1720506092340,0.05995809,3088.4,3087.5,3.23884]
[1720506092582,0.05995809,3088.4,3087.4,3.2389]
[1720506092944,2.4806,3088.3,3087.0,3.23931]
[1720506093183,0.05987321,3088.2,3086.9,5.62989]
[1720506093340,0.05987321,3088.2,3086.5,5.48585]
[1720506093341,2.00887321,3088.2,3087.0,3.0]
[1720506093541,0.44894732,3088.1,3087.0,3.23938]
[1720506093755,0.05983631,3088.0,3087.2,3.23914]
[1720506094140,0.05983631,3088.0,3087.4,3.23895]
[1720506094341,2.4806,3088.3,3087.4,3.23895]
[1720506094578,0.30793321,3088.2,3087.4,3.23895]
[1720506095255,0.05987321,3088.2,3087.4,3.23895]
[1720506095587,0.05987321,3088.2,3087.4,3.30371926]
[1720506095878,0.05987321,3088.2,3087.5,3.23886]
[1720506096101,0.05987321,3088.2,3087.4,3.23895]
[1720506096243,0.33898562,3088.5,3087.4,3.23895]
[1720506096448,0.05985867,3088.1,3087.5,3.23886]
[1720506096790,0.05982068,3088.0,3087.5,3.23886]
[1720506096955,1.09445418,3088.5,3087.5,3.23886]
[1720506097191,0.05987884,3088.4,3087.5,3.23886]
[1720506097643,0.05987884,3088.4,3087.6,0.06476682]
[1720506097848,0.05987884,3088.4,3087.8,3.23846]
[1720506098078,0.05987884,3088.4,3087.9,3.30309846]
[1720506098376,0.33897015,3088.4,3087.9,3.30309846]
[1720506098588,0.0598239,3088.3,3087.9,3.30309846]
[1720506098944,0.33897015,3088.4,3088.0,3.23832]
[1720506099148,0.05981999,3088.3,3088.0,3.23832]
[1720506099957,0.05981999,3088.3,3087.8,3.23846]
[1720506099958,0.05981999,3088.3,3088.2,3.23813]
[1720506100157,0.33897015,3088.4,3088.3,3.23802]
[1720506100358,0.39574119,3088.4,3088.3,3.23802]
[1720506100556,0.05677104,3088.4,3088.3,3.23802]
[1720506100767,0.33894106,3088.8,3088.0,3.23833]
[1720506100942,1.17862001,3088.7,3088.0,3.23833]
[1720506101145,0.05686738,3088.7,3088.1,3.30293554]
[1720506101345,1.12174528,3088.6,3088.2,3.23804]
[1720506101545,0.05685077,3088.5,3088.2,3.23804]
[1720506101767,0.33894106,3088.8,3088.3,3.30277263]
[1720506102071,0.05687984,3088.7,3088.5,3.2378]
[1720506102458,1.12171566,3088.6,3088.5,3.2378]
[1720506102786,3.0,3089.4,3088.5,3.2378]
[1720506102997,1.17867467,3089.3,3088.5,3.2378]
[1720506103286,1.12167454,3089.2,3088.6,0.06474612]
[1720506103501,1.12167454,3089.1,3088.9,3.23731]
[1720506103788,0.33887457,3089.2,3088.9,3.23731]
[1720506105096,0.33887457,3089.2,3087.6,2.245]
[1720506105097,1.12164022,3089.1,3088.4,3.23792]
[1720506105261,1.12164022,3089.0,3088.1,5.67914]
[1720506105461,2.77337457,3089.2,3088.3,3.23793]
[1720506105462,1.12164022,3088.9,3088.3,3.23793]
[1720506105676,0.0550472,3088.9,3088.3,3.23793]
[1720506105883,1.12164022,3088.8,3088.3,3.23793]
[1720506106204,1.12164022,3088.8,3088.2,3.23811]
[1720506106354,0.05503941,3088.7,3088.2,3.23811]
[1720506106550,1.12164022,3088.9,3087.9,3.23843]
[1720506106906,0.61624184,3089.1,3087.8,6.23845]
[1720506106907,1.17669417,3088.8,3087.8,6.23845]
[1720506107063,1.17669417,3088.8,3087.8,3.0]
[1720506107266,1.12179311,3088.7,3088.0,3.23832]
[1720506107466,1.12179311,3088.6,3088.0,3.23832]
[1720506107970,0.05484248,3088.5,3088.0,3.23832]
[1720506108188,1.12179311,3088.4,3088.1,0.06475753]
[1720506108368,1.12179311,3088.4,3087.9,3.23836]
[1720506108369,0.0548134,3088.3,3087.9,3.23836]
[1720506108575,0.36439786,3088.9,3088.0,3.23834]
[1720506108777,1.17660572,3088.8,3088.1,3.23822]
[1720506108953,1.12183077,3088.7,3088.1,3.23822]
[1720506109153,0.36439786,3088.9,3088.1,3.23822]
[1720506109154,1.17657665,3088.6,3088.1,3.23822]
[1720506109455,1.12183077,3088.5,3087.9,3.23836]
[1720506109656,1.12183077,3088.4,3087.9,3.23836]
[1720506109903,0.05471208,3088.4,3087.7,3.23864]
[1720506110108,1.12183077,3088.3,3087.7,3.23864]
[1720506110456,0.36439786,3088.9,3087.5,3.23884]
[1720506110457,1.12191307,3088.2,3087.5,3.23884]
[1720506110688,1.12191307,3088.1,3087.5,3.23884]
[1720506111000,0.0546448,3088.1,3087.5,3.23884]
[1720506111168,1.12191307,3088.0,3087.2,2.4318]
[1720506111499,1.17659007,3087.9,3087.3,3.23905]
[1720506111697,1.12205142,3087.8,3087.2,3.23916]
[1720506111898,1.12205142,3087.7,3087.3,3.23906]
[1720506112100,0.05453935,3087.7,3087.3,3.23906]
[1720506112395,2.2606,3088.1,3087.3,3.23906]
[1720506112597,1.17655486,3088.0,3087.3,3.23906]
[1720506112802,1.12204757,3087.9,3087.3,3.23906]
[1720506113001,1.17652577,3087.8,3087.3,3.23906]
[1720506113207,0.0544782,3087.8,3087.3,3.23906]
[1720506113402,3.0,3088.4,3087.6,3.23874]
[1720506113403,1.12204407,3087.7,3087.6,3.23874]
[1720506113619,0.05444,3087.7,3087.6,3.23874]
[1720506114111,5.2945,3088.6,3087.6,3.23874]
[1720506114297,3.11261699,3088.5,3087.6,6.47742]
[1720506114603,4.12198406,3088.4,3087.6,6.47742]
[1720506114903,1.17631503,3088.3,3088.0,3.23832]
[1720506115201,1.17631503,3088.3,3088.1,3.23823]
[1720506115202,1.12188711,3088.2,3088.1,3.23823]
[1720506115503,0.05444177,3088.2,3088.1,3.23823]
[1720506115877,2.2945,3088.6,3088.1,3.23823]
[1720506116197,1.17638214,3088.5,3088.1,3.23823]
[1720506116402,1.12181872,3088.4,3088.1,3.23823]
[1720506116563,1.17635306,3088.3,3088.1,3.23823]
[1720506116762,0.05453434,3088.3,3088.1,3.23823]
[1720506117003,3.0,3089.0,3088.1,3.23823]
[1720506117298,2.58986883,3088.9,3088.2,0.06475707]
[1720506117515,2.53524727,3088.8,3088.3,3.23793]
[1720506117804,2.5898837,3088.7,3088.3,3.3026814]
[1720506118105,1.12178923,3088.6,3088.3,3.23793]
[1720506118312,1.41336565,3088.5,3088.4,3.23792]
[1720506118605,1.17639659,3088.5,3088.3,3.23793]
[1720506118913,0.05460736,3088.5,3088.3,3.23793]
[1720506119113,0.05460736,3088.5,3088.3,3.63374299]
[1720506119275,0.33890438,3089.1,3088.4,0.06475154]
[1720506119476,0.33890438,3089.1,3088.9,3.23739]
[1720506119477,2.53480519,3089.0,3088.9,3.23739]
[1720506119790,1.69352716,3089.8,3089.0,3.23729]
[1720506119791,1.01611629,3089.8,3089.0,3.23729]
[1720506119960,1.35482173,3089.9,3089.0,0.4605506]
[1720506120164,2.3534,3090.1,3089.0,0.4605506]
[1720506120165,5.64277223,3089.8,3089.1,3.23718]
[1720506120387,2.53450403,3089.7,3089.1,3.23718]
[1720506120602,2.53450403,3089.6,3089.1,3.23718]
[1720506120775,2.53450403,3089.6,3089.0,0.06473761]
[1720506120776,2.53450403,3089.5,3088.9,3.23735]
[1720506120978,2.53450403,3089.4,3088.9,3.23735]
[1720506121312,2.53450403,3089.3,3089.0,3.23724]
[1720506121481,1.41304207,3089.2,3089.0,3.23724]
[1720506121682,1.01741583,3089.8,3089.0,3.23724]
[1720506121902,2.13887575,3089.7,3088.9,3.23731]
[1720506122230,1.01741583,3089.5,3088.9,3.23731]
[1720506122413,3.10834806,3089.5,3088.9,3.23731]
[1720506122708,2.586056,3089.4,3088.7,3.2375]
[1720506122880,1.41318158,3089.3,3088.4,3.23788]
[1720506123077,1.12155656,3089.2,3087.9,2.3064]
[1720506123300,5.69471794,3089.2,3087.9,2.3064]
[1720506123463,2.53487594,3089.1,3087.9,2.3064]
[1720506123670,2.53487594,3089.0,3088.4,3.23789]
[1720506123992,2.53487594,3088.9,3088.3,3.23794]
[1720506124203,0.05148723,3089.0,3088.0,3.23826]
[1720506124204,2.58627247,3088.8,3088.0,3.23826]
[1720506124371,2.53487594,3088.7,3088.3,3.23801]
[1720506124565,0.05136747,3088.6,3088.4,3.23787]
[1720506124862,0.05136747,3088.6,3088.3,3.23801]
[1720506124863,3.5095931,3089.3,3088.5,3.23781]
[1720506125077,3.55228985,3089.2,3088.3,3.23801]
[1720506125285,3.55228985,3089.1,3088.4,3.23789]
[1720506125466,1.41325794,3089.0,3088.6,3.23769]
[1720506125696,1.12162443,3088.9,3088.6,3.23769]
[1720506126018,2.58620242,3088.8,3087.9,2.3064]
[1720506126189,1.12162952,3088.7,3087.9,2.3064]
[1720506126521,1.46462978,3088.6,3087.8,3.23854]
[1720506126706,2.53496479,3088.5,3087.8,3.23854]
[1720506126881,2.53496479,3088.4,3087.8,3.23854]
[1720506127078,1.12162952,3088.3,3087.8,3.23854]
[1720506127302,0.0511974,3088.4,3088.3,6.47604]
[1720506127605,1.0173931,3089.2,3088.6,3.23771]
[1720506127809,2.53484554,3089.1,3088.6,3.23771]
[1720506128023,2.53484554,3089.0,3088.3,5.63632]
[1720506128334,1.0173931,3089.3,3088.6,3.23768]
[1720506128499,1.0173931,3089.3,3088.5,3.23772]
[1720506128500,2.53476715,3089.2,3088.5,3.23772]
[1720506128696,2.53476715,3089.2,3088.3,5.63632]
[1720506128697,2.53477703,3089.1,3088.6,3.23771]
[1720506128940,1.41320149,3089.0,3088.6,3.30245616]
[1720506129236,1.41320149,3089.0,3088.6,3.23771]
[1720506129442,1.0173931,3089.2,3088.6,3.23771]
[1720506129757,2.2907,3088.9,3087.9,1.683]
[1720506129900,1.0173931,3089.0,3087.1,3.23919]
[1720506129901,1.0173931,3088.2,3087.1,3.23919]
[1720506130095,1.0173931,3088.0,3087.1,3.23919]
[1720506130345,1.0173931,3087.8,3087.3,3.23906]
[1720506130632,1.0173931,3088.0,3087.3,3.23906]
[1720506130838,2.53578749,3087.9,3087.3,3.23906]
[1720506131043,2.53578749,3087.8,3087.3,3.23906]
[1720506131201,1.0173931,3087.9,3087.3,3.23906]
[1720506131403,2.53581411,3087.8,3087.1,3.23919]
[1720506131629,2.53585953,3087.7,3087.1,3.23919]
[1720506131834,1.0173931,3087.8,3087.1,3.23919]
[1720506132109,1.0173931,3087.9,3087.1,3.23919]
[1720506132344,2.2725,3088.0,3087.1,3.23919]
[1720506132541,1.01815026,3087.8,3087.1,3.23919]
[1720506132835,2.53592949,3087.7,3087.1,3.23919]
[1720506133036,1.4138613,3087.6,3087.2,3.23917]
[1720506133338,1.01815026,3087.8,3086.8,3.23958]